fUSD/lending_fUSD_20251119
["ID","MTS","AMOUNT","RATE_DAILY","PERIOD"]
[394382115,1763513443595,-300.0,0.00041725,2]
[394382116,1763513443605,-300.0,0.00041725,2]
[394382117,1763513443614,-300.0,0.00041727,2]
[394382118,1763513443624,-1000.0,0.00041728,14]
[394382119,1763513443635,-300.0,0.0004173,2]
[394382120,1763513443644,-300.0,0.00041732,2]
[394382121,1763513443653,-300.0,0.00041733,2]
[394382122,1763513443662,-300.0,0.00041733,2]
[394382123,1763513443673,-300.0,0.00041735,2]
[394382124,1763513443682,-300.0,0.00041736,2]
[394382125,1763513443692,-300.0,0.00041738,2]
[394382126,1763513443701,-300.0,0.00041738,2]
[394382127,1763513443710,-300.0,0.0004174,2]
[394382128,1763513443720,-300.0,0.0004174,2]
[394382129,1763513443730,-300.0,0.00041746,2]
[394382130,1763513443738,-1000.0,0.00041746,14]
[394382131,1763513443748,-1003.25121953,0.00041746,14]
[394382132,1763513443757,-300.0,0.00041746,2]
[394382133,1763513443766,-300.0,0.00041747,2]
[394382134,1763513443775,-300.0,0.00041748,2]
[394382135,1763513443784,-1000.0,0.0004175,14]
[394382136,1763513443792,-300.0,0.00041753,2]
[394382137,1763513443801,-300.0,0.00041758,2]
[394382138,1763513443810,-900.0,0.00041758,2]
[394382139,1763513443818,-300.0,0.00041759,2]
[394382140,1763513443827,-300.0,0.00041764,2]
[394382141,1763513443838,-300.0,0.00041766,2]
[394382142,1763513443848,-500.0,0.00041768,30]
[394382143,1763513443857,-300.0,0.00041769,2]
[394382144,1763513443866,-12095.0843271,0.00041771,4]
[394382145,1763513443875,-300.0,0.00041772,2]
[394382146,1763513443887,-300.0,0.00041772,2]
[394382147,1763513443896,-300.0,0.00041774,2]
[394382148,1763513443905,-300.0,0.00041774,2]
[394382149,1763513443915,-300.0,0.00041775,2]
[394382150,1763513443923,-300.0,0.00041777,2]
[394382151,1763513443932,-2000.0,0.0004178,120]
[394382152,1763513443941,-200.0,0.0004178,120]
[394382153,1763513443950,-423.23507377,0.0004178,30]
[394382154,1763513443958,-150.0,0.00041781,30]
[394382155,1763513443967,-500.0,0.00041781,30]
[394382156,1763513443976,-500.0,0.00041781,2]
[394382157,1763513443985,-1081.0,0.00041781,30]
[394382158,1763513443995,-500.0,0.00041781,30]
[394382159,1763513444005,-500.0,0.00041781,30]
[394382160,1763513444015,-500.0,0.00041781,30]
[394382161,1763513444024,-500.0,0.00041781,30]
[394382162,1763513444033,-150.0,0.00041781,2]
[394382163,1763513444042,-500.0,0.00041781,30]
[394382164,1763513444051,-486.0,0.00041781,30]
[394382165,1763513444060,-150.0,0.00041781,2]
[394382166,1763513444069,-500.0,0.00041781,30]
[394382167,1763513444079,-150.0,0.00041781,2]
[394382169,1763513444088,-500.0,0.00041781,30]
[394382171,1763513444097,-500.0,0.00041781,30]
[394382172,1763513444105,-133045.927598,0.00041784,4]
[394382173,1763513444114,-300.0,0.00041785,2]
[394382174,1763513444123,-300.0,0.00041786,2]
[394382175,1763513444134,-300.0,0.00041786,2]
[394382176,1763513444142,-300.0,0.00041786,2]
[394382177,1763513444152,-300.0,0.00041787,2]
[394382178,1763513444160,-313.41379129,0.0004179,7]
[394382179,1763513444169,-313.41379129,0.0004179,7]
[394382180,1763513444178,-1000.0,0.00041792,14]
[394382181,1763513444187,-2568.74936119,0.00041793,2]
[394382182,1763513444196,-150.0,0.00041793,2]
[394382183,1763513444205,-300.0,0.00041793,2]
[394382184,1763513444214,-150.0,0.00041793,2]
[394382185,1763513444223,-1006.48846121,0.00041793,2]
[394382186,1763513444232,-1043.5546586,0.00041794,2]
[394382187,1763513444241,-151.5408906,0.00041794,2]
[394382188,1763513444250,-606782.7038348,0.00041794,2]
[394382189,1763513444259,-11587.675216,0.00041794,2]
[394382190,1763513444267,-71887.3498743,0.00041794,2]
[394382191,1763513444276,-300.0,0.00041797,2]
[394382192,1763513444285,-300.0,0.00041797,2]
[394382193,1763513444294,-1000.0,0.00041798,2]
[394382194,1763513444303,-150.0,0.00041798,2]
[394382195,1763513444312,-1026.538,0.00041798,2]
[394382196,1763513444322,-500.0,0.00041798,2]
[394382197,1763513444330,-500.0,0.00041798,7]
[394382198,1763513444339,-854.48,0.00041799,7]
[394382199,1763513444348,-212.605,0.00041799,30]
[394382200,1763513444357,-200.0,0.00041799,7]
[394382201,1763513444366,-459.02,0.00041799,7]
[394382202,1763513444376,-200.0,0.00041799,7]
[394382203,1763513444386,-151.0,0.00041799,14]
[394382204,1763513444396,-1245.0,0.00041799,14]
[394382205,1763513444405,-151.0,0.00041799,14]
[394382206,1763513444414,-151.0,0.00041799,14]
[394382207,1763513444422,-1245.0,0.00041799,14]
[394382208,1763513444431,-151.0,0.00041799,14]
[394382209,1763513444441,-151.0,0.00041799,14]
[394382210,1763513444450,-829.0,0.00041799,14]
[394382211,1763513444458,-1245.0,0.00041799,14]
[394382212,1763513444467,-151.0,0.00041799,14]
[394382213,1763513444476,-151.0,0.00041799,14]
[394382214,1763513444485,-901.6027639,0.00041799,14]
[394382215,1763513444494,-1245.0,0.00041799,14]
[394382216,1763513444503,-151.0,0.00041799,14]
[394382217,1763513444513,-151.0,0.00041799,14]
[394382218,1763513444629,-1245.0,0.00041799,14]
[394382219,1763513444651,-151.0,0.00041799,14]
[394382220,1763513444661,-151.0,0.00041799,14]
[394382221,1763513444670,-1245.0,0.00041799,14]
[394382222,1763513444679,-151.0,0.00041799,14]
[394382223,1763513444688,-151.0,0.00041799,14]
[394382224,1763513444699,-1245.0,0.00041799,14]
[394382225,1763513444708,-151.0,0.00041799,14]
[394382226,1763513444717,-151.0,0.00041799,14]
[394382227,1763513444726,-1245.0,0.00041799,14]
[394382228,1763513444736,-151.0,0.00041799,14]
[394382229,1763513444745,-151.0,0.00041799,14]
[394382230,1763513444755,-1245.0,0.00041799,14]
[394382231,1763513444765,-151.0,0.00041799,14]
[394382232,1763513444774,-1245.0,0.00041799,14]
[394382233,1763513444783,-151.0,0.00041799,14]
[394382234,1763513444792,-151.0,0.00041799,14]
[394382235,1763513444802,-1245.0,0.00041799,14]
[394382236,1763513444811,-151.0,0.00041799,14]
[394382237,1763513444821,-151.0,0.00041799,14]
[394382238,1763513444830,-151.0,0.00041799,14]
[394382239,1763513444842,-151.0,0.00041799,14]
[394382240,1763513444851,-1245.0,0.00041799,14]
[394382241,1763513444860,-222.38828946,0.00041799,14]
[394382242,1763513444869,-1245.0,0.00041799,14]
[394382243,1763513444879,-153.0,0.00041799,14]
[394382244,1763513444889,-153.0,0.00041799,14]
[394382245,1763513444899,-153.0,0.00041799,14]
[394382246,1763513444908,-153.0,0.00041799,14]
[394382247,1763513444918,-151.0,0.00041799,14]
[394382248,1763513444927,-151.0,0.00041799,14]
[394382249,1763513444936,-829.0,0.00041799,14]
[394382250,1763513444946,-153.0,0.00041799,14]
[394382251,1763513444956,-500.0,0.00041799,7]
[394382252,1763513444964,-500.0,0.00041799,7]
[394382253,1763513444973,-500.0,0.00041799,7]
[394382254,1763513444982,-500.0,0.00041799,7]
[394382255,1763513444991,-500.0,0.00041799,7]
[394382256,1763513445000,-500.0,0.00041799,7]
[394382257,1763513445009,-500.0,0.00041799,7]
[394382258,1763513445019,-500.0,0.00041799,7]
[394382259,1763513445028,-500.0,0.00041799,7]
[394382260,1763513445037,-500.0,0.00041799,7]
[394382261,1763513445047,-500.0,0.00041799,7]
[394382262,1763513445056,-500.0,0.00041799,7]
[394382263,1763513445065,-500.0,0.00041799,7]
[394382264,1763513445074,-500.0,0.00041799,7]
[394382265,1763513445086,-500.0,0.00041799,7]
[394382266,1763513445095,-523.25568258,0.00041799,7]
[394382267,1763513445104,-1033.56918,0.00041799,10]
[394382268,1763513445113,-500.0,0.00041799,30]
[394382269,1763513445123,-1000.0,0.00041799,30]
[394382270,1763513445134,-1000.0,0.00041799,30]
[394382271,1763513445143,-1000.0,0.00041799,30]
[394382272,1763513445152,-1000.0,0.00041799,30]
[394382273,1763513445161,-1000.0,0.00041799,30]
[394382274,1763513445170,-1000.0,0.00041799,30]
[394382275,1763513445180,-1000.0,0.00041799,30]
[394382276,1763513445189,-1000.0,0.00041799,30]
[394382277,1763513445198,-1000.0,0.00041799,30]
[394382278,1763513445207,-1000.0,0.00041799,30]
[394382279,1763513445216,-1000.0,0.00041799,90]
[394382280,1763513445226,-1000.0,0.00041799,90]
[394382281,1763513445235,-1000.0,0.00041799,90]
[394382282,1763513445244,-1000.0,0.00041799,90]
[394382283,1763513445253,-1000.0,0.00041799,90]
[394382284,1763513445262,-1000.0,0.00041799,90]
[394382285,1763513445272,-500.0,0.00041799,2]
[394382286,1763513445281,-500.0,0.00041799,2]
[394382287,1763513445291,-500.0,0.00041799,2]
[394382288,1763513445300,-500.0,0.00041799,2]
[394382289,1763513445309,-500.0,0.00041799,2]
[394382290,1763513445318,-500.0,0.00041799,2]
[394382291,1763513445327,-500.0,0.00041799,2]
[394382292,1763513445337,-500.0,0.00041799,2]
[394382293,1763513445346,-500.0,0.00041799,2]
[394382294,1763513445355,-500.0,0.00041799,2]
[394382295,1763513445364,-500.0,0.00041799,2]
[394382296,1763513445374,-500.0,0.00041799,2]
[394382297,1763513445383,-551.61144685,0.00041799,2]
[394382298,1763513445393,-150.0,0.00041799,2]
[394382299,1763513445402,-150.0,0.00041799,2]
[394382300,1763513445411,-192.57698377,0.00041799,2]
[394382301,1763513445421,-2591.1765387,0.00041799,27]
[394382302,1763513445430,-20754.98419382,0.000418,30]
[394382303,1763513445439,-20754.98419382,0.000418,30]
[394382304,1763513445448,-20754.98419382,0.000418,30]
[394382305,1763513445457,-20754.98419382,0.000418,30]
[394382306,1763513445466,-308784.40445349,0.000418,7]
[394382307,1763513445584,-292.696336,0.000418,7]
[394382308,1763513445600,-500.0,0.00040302,31]
[394382309,1763513445609,-1769.23766179,0.000418,7]
[394382310,1763513445620,-1850.9311271,0.000418,7]
[394382311,1763513445633,-780.00000001,0.000418,7]
[394382312,1763513445653,-483.87870075,0.0004008,2]
[394382313,1763513445673,-1120.12129925,0.0004008,2]
[394382314,1763513445682,-123050.77814469,0.000418,7]
[394382315,1763513445758,-1401.2,0.0003989,2]
[394382316,1763513445768,-150.0,0.00040164,2]
[394382317,1763513445777,-1209.53,0.00040164,2]
[394382318,1763513445786,-338.98,0.00040164,2]
[394382319,1763513445795,-177.39,0.00040164,2]
[394382320,1763513445804,-150.0,0.00040164,2]
[394382321,1763513445813,-300.0,0.00040164,2]
[394382322,1763513445823,-416.87,0.00040164,2]
[394382323,1763513445832,-478.46,0.00040849,2]
[394382324,1763513445845,-500.0,0.00041095,2]
[394382325,1763513445854,-900.0,0.00041359,2]
[394382326,1763513445863,-375.07952846,0.00041369,2]
[394382327,1763513445872,-7894.39866846,0.000418,7]
[394382328,1763513445885,-31377.0,0.000418,7]
[394382329,1763513445896,-789.44390463,0.000418,7]
[394382330,1763513445907,-500.0,0.000418,7]
[394382331,1763513445919,-723.94605047,0.000418,7]
[394382333,1763513446532,-605.73784635,0.00041059,2]
[394382334,1763513446543,-294.26215365,0.00041059,2]
[394382335,1763513446552,-1129.0,0.000416,2]
[394382336,1763513446561,-1286.1605705,0.000417,2]
[394382337,1763513446571,-1566723.37911194,0.000418,7]
[394382338,1763513446585,-1270.65064328,0.000418,7]
[394382432,1763513724413,470.86,0.00013699,2]
[394382443,1763513945085,373.75,0.000418,30]
[394382942,1763514631372,-151.9,0.00018039,2]
[394382943,1763514631382,-151.9,0.00019679,2]
[394382944,1763514631391,-470.86,0.00020187,2]
[394382945,1763514631401,-491.2953019,0.00021013,2]
[394382946,1763514631434,-3028.47250073,0.00021013,2]
[394382947,1763514631445,-3637.53761637,0.00021013,2]
[394382948,1763514631456,-993.41458226,0.00021119,2]
[394382949,1763514631465,-312.5701946,0.00021219,2]
[394382950,1763514631474,-151.9,0.00021319,2]
[394382951,1763514631483,-993.41458224,0.0002151,2]
[394382952,1763514631494,-993.41458224,0.000219,2]
[394382953,1763514631503,-1200.0,0.00021972,2]
[394382954,1763514631512,-1200.0,0.00021972,2]
[394382955,1763514631521,-415.0,0.00021998,2]
[394382956,1763514631530,-300.0,0.00021998,2]
[394382957,1763514631539,-300.0,0.00021998,2]
[394382958,1763514631549,-7407.88337131,0.00022,7]
[394382959,1763514631560,-938.02,0.00022,7]
[394382960,1763514631571,-569.9627047,0.00022,7]
[394382961,1763514631587,-518.04655203,0.00022,7]
[394382962,1763514631599,-18609.73355461,0.00022,7]
[394382963,1763514631612,-20629.35381735,0.00022,7]
[394382964,1763514631621,-500.0,0.00022,2]
[394382965,1763514631631,-499.52855895,0.00022,2]
[394382966,1763514631641,-500.0,0.00022,2]
[394382967,1763514631651,-500.0,0.00022,2]
[394382968,1763514631661,-500.0,0.00022,2]
[394382969,1763514631671,-233.36599711,0.00022,2]
[394382970,1763514631680,-500.0,0.00022,2]
[394382971,1763514631689,-505.39261707,0.00022,2]
[394382972,1763514631699,-506.59340094,0.00022,2]
[394382973,1763514631708,-500.0,0.00022,2]
[394382974,1763514631717,-405.64327958,0.00022,2]
[394382975,1763514631727,-302.80487128,0.00022548,2]
[394382976,1763514631736,-151.9,0.00022958,2]
[394382977,1763514631746,-1680.0,0.00023989,2]
[394382978,1763514631755,-151.9,0.00024598,2]
[394382979,1763514631764,-671.0,0.00026191,2]
[394382980,1763514631773,-151.9,0.00026238,2]
[394382981,1763514631783,-470.86,0.00026676,2]
[394382982,1763514631793,-151.9,0.00027878,2]
[394382983,1763514631802,-151.9,0.00029518,2]
[394382984,1763514631812,-165.17542109,0.00029926,13]
[394382985,1763514631821,-151.9,0.00031158,2]
[394382987,1763514631832,-188.63401806,0.00031517,16]
[394382988,1763514631841,-999.99,0.00031538,2]
[394382989,1763514631850,-9999.99,0.00031538,2]
[394382990,1763514631860,-500.0,0.00031616,2]
[394382991,1763514631869,-9999.99,0.00031616,2]
[394382992,1763514631878,-151.9,0.00032798,2]
[394382993,1763514631888,-470.86,0.00033165,2]
[394382994,1763514631898,-151.9,0.00034438,2]
[394382995,1763514631907,-240.66282677,0.00034698,23]
[394382996,1763514631916,-760.48,0.00035347,2]
[394382997,1763514631925,-597.0,0.00035562,2]
[394382998,1763514631935,-295.88,0.00035861,30]
[394382999,1763514631943,-151.9,0.00036078,2]
[394383000,1763514631952,-269.02661341,0.00036288,26]
[394383001,1763514631962,-5000.0,0.00036347,2]
[394383002,1763514631972,-2751.0,0.00036728,120]
[394383003,1763514631982,-500.0,0.00036813,30]
[394383004,1763514631991,-500.0,0.00036841,30]
[394383005,1763514632001,-500.0,0.00037008,30]
[394383006,1763514632010,-182.75269863,0.00037074,2]
[394383007,1763514632019,-9999.99,0.00037074,2]
[394383008,1763514632029,-1536.36,0.00037074,30]
[394383009,1763514632039,-12036.69,0.00037074,2]
[394383010,1763514632048,-1169.95,0.00037074,2]
[394383011,1763514632057,-3868.08,0.00037074,2]
[394383012,1763514632066,-500.0,0.000371,5]
[394383013,1763514632074,-500.0,0.000371,5]
[394383014,1763514632084,-9999.99,0.00037164,2]
[394383015,1763514632094,-500.0,0.00037199,30]
[394383016,1763514632103,-150.99,0.00037376,2]
[394383017,1763514632112,-150.99,0.00037376,30]
[394383018,1763514632121,-500.0,0.00037431,30]
[394383019,1763514632130,-500.0,0.00037493,30]
[394383020,1763514632139,-610.0,0.00037566,2]
[394383021,1763514632150,-500.0,0.00037568,2]
[394383022,1763514632160,-150.0,0.00037574,2]
[394383023,1763514632169,-150.0,0.00037603,7]
[394383024,1763514632178,-150.0,0.00037603,7]
[394383025,1763514632188,-200.0,0.00037617,2]
[394383026,1763514632197,-200.0,0.0003762,2]
[394383027,1763514632206,-502.51981297,0.00037648,5]
[394383028,1763514632216,-298.84651182,0.00037879,30]
[394383029,1763514632225,-225.82,0.0003794,2]
[394383030,1763514632234,-171.0,0.00038,2]
[394383031,1763514632244,-500.0,0.000381,5]
[394383032,1763514632253,-500.0,0.00038302,30]
[394383033,1763514632262,-500.0,0.00038305,30]
[394383034,1763514632271,-500.0,0.00038369,30]
[394383035,1763514632281,-1573.758,0.000385,51]
[394383036,1763514632290,-500.0,0.00038521,30]
[394383037,1763514632299,-500.0,0.00038565,30]
[394383038,1763514632309,-500.0,0.00038684,30]
[394383039,1763514632318,-1208.84,0.00038737,2]
[394383040,1763514632331,-500.0,0.00038765,30]
[394383041,1763514632348,-500.0,0.00038785,30]
[394383042,1763514632358,-1000.0,0.00038877,7]
[394383043,1763514632368,-35486.2,0.00038971,2]
[394383044,1763514632378,-500.0,0.0003899,30]
[394383045,1763514632386,-171.0,0.00039,30]
[394383046,1763514632397,-3000.0,0.00039,5]
[394383047,1763514632408,-200.0,0.0003903,2]
[394383048,1763514632421,-500.0,0.0003922,30]
[394383049,1763514632430,-500.0,0.00039222,30]
[394383050,1763514632440,-500.0,0.00039246,2]
[394383051,1763514632449,-500.0,0.00039246,15]
[394383052,1763514632458,-500.0,0.00039246,15]
[394383053,1763514632467,-500.0,0.00039246,15]
[394383054,1763514632476,-500.0,0.00039246,7]
[394383055,1763514632486,-537.0401872,0.00039246,2]
[394383057,1763514632498,-500.0,0.00039246,15]
[394383059,1763514632508,-579.49593836,0.00039246,15]
[394383060,1763514632517,-457.22802774,0.00039246,15]
[394383061,1763514632527,-500.0,0.00039246,15]
[394383062,1763514632537,-391.30965379,0.00039246,7]
[394383063,1763514632547,-500.0,0.00039246,15]
[394383064,1763514632556,-500.0,0.00039246,15]
[394383065,1763514632566,-500.0,0.00039246,15]
[394383066,1763514632576,-500.0,0.00039246,15]
[394383067,1763514632585,-500.0,0.00039246,15]
[394383068,1763514632594,-500.0,0.00039246,15]
[394383069,1763514632603,-500.0,0.00039246,15]
[394383070,1763514632612,-500.0,0.00039246,15]
[394383071,1763514632622,-500.0,0.00039246,15]
[394383072,1763514632632,-500.0,0.00039246,15]
[394383073,1763514632642,-500.0,0.00039246,15]
[394383074,1763514632652,-500.0,0.00039246,15]
[394383075,1763514632662,-500.0,0.00039246,15]
[394383076,1763514632671,-500.0,0.00039246,15]
[394383077,1763514632681,-500.0,0.00039246,15]
[394383078,1763514632690,-500.0,0.00039246,15]
[394383079,1763514632700,-322.96202788,0.00039246,15]
[394383080,1763514632710,-500.0,0.00039246,15]
[394383081,1763514632719,-500.0,0.00039246,15]
[394383082,1763514632729,-500.0,0.00039246,15]
[394383083,1763514632738,-500.0,0.00039246,15]
[394383084,1763514632747,-500.0,0.00039246,15]
[394383085,1763514632756,-500.0,0.00039246,15]
[394383086,1763514632765,-500.0,0.00039246,15]
[394383087,1763514632776,-400.0,0.00039246,15]
[394383088,1763514632785,-500.0,0.00039246,15]
[394383089,1763514632794,-500.0,0.00039246,15]
[394383090,1763514632803,-500.0,0.00039246,15]
[394383091,1763514632812,-500.0,0.00039246,15]
[394383092,1763514632821,-500.0,0.00039246,15]
[394383093,1763514632830,-500.0,0.00039246,15]
[394383094,1763514632840,-500.0,0.00039246,15]
[394383095,1763514632849,-500.0,0.00039246,15]
[394383096,1763514632858,-500.0,0.00039246,15]
[394383097,1763514632868,-500.0,0.00039246,15]
[394383098,1763514632877,-500.0,0.00039246,15]
[394383099,1763514632886,-500.0,0.00039246,15]
[394383100,1763514632897,-500.0,0.00039246,15]
[394383101,1763514632907,-500.0,0.00039246,15]
[394383102,1763514632916,-500.0,0.00039246,15]
[394383103,1763514632925,-500.0,0.00039246,15]
[394383104,1763514632935,-500.0,0.00039246,15]
[394383105,1763514632944,-15442.40760154,0.00039247,2]
[394383106,1763514632953,-501.95048914,0.00039273,5]
[394383107,1763514632962,-351.16553114,0.00039273,5]
[394383108,1763514632971,-164.00236971,0.00039273,12]
[394383109,1763514632980,-12102.64762688,0.00039273,2]
[394383110,1763514632991,-731.04923224,0.00039273,2]
[394383111,1763514633133,-500.0,0.00039334,30]
[394383112,1763514633144,-949.97,0.00039337,2]
[394383113,1763514633153,-949.97,0.00039337,2]
[394383114,1763514633163,-949.97,0.00039337,2]
[394383115,1763514633173,-949.97,0.00039337,2]
[394383116,1763514633183,-949.97,0.00039337,2]
[394383117,1763514633192,-500.0,0.00039347,15]
[394383118,1763514633202,-179.93004011,0.00039347,15]
[394383119,1763514633211,-385.72217098,0.00039347,15]
[394383120,1763514633220,-500.0,0.00039347,120]
[394383121,1763514633230,-500.0,0.00039347,120]
[394383122,1763514633239,-500.0,0.00039347,7]
[394383123,1763514633248,-500.0,0.00039347,7]
[394383124,1763514633257,-500.0,0.00039347,2]
[394383125,1763514633266,-500.0,0.00039347,2]
[394383126,1763514633276,-43464.32599619,0.00039348,4]
[394383127,1763514633375,-1146.88520311,0.00039348,4]
[394383128,1763514633386,-1815.05849312,0.00039348,4]
[394383129,1763514633399,-5627.0,0.00039348,4]
[394383130,1763514633421,-5095.31205287,0.00039348,4]
[394383131,1763514633431,-815.82400348,0.00039348,4]
[394383132,1763514637490,-3458.85633563,0.00039348,4]
[394383133,1763514637548,-177444.1327786,0.00039348,4]
[394383134,1763514637557,-247934.10985,0.00039348,4]
[394383135,1763514637566,-500.0,0.00039357,7]
[394383136,1763514637575,-500.0,0.00039357,7]
[394383137,1763514637584,-500.0,0.00039357,7]
[394383138,1763514637593,-500.0,0.00039357,2]
[394383139,1763514637602,-500.0,0.00039357,2]
[394383140,1763514637611,-500.0,0.00039357,2]
[394383141,1763514637620,-500.0,0.00039373,5]
[394383142,1763514637630,-566.79984871,0.00039373,5]
[394383143,1763514637640,-500.0,0.00039386,30]
[394383144,1763514637650,-172.35675476,0.000394,2]
[394383145,1763514637660,-426.5844,0.000394,10]
[394383146,1763514637670,-500.0,0.00039489,7]
[394383147,1763514637679,-500.0,0.00039489,2]
[394383148,1763514637688,-86237.9512521,0.0003949,4]
[394383149,1763514637697,-208.94252753,0.0003949,2]
[394383150,1763514637707,-150.42,0.0003949,2]
[394383151,1763514637717,-150.42,0.0003949,2]
[394383153,1763514637726,-150.42,0.0003949,2]
[394383155,1763514637735,-500.0,0.00039499,7]
[394383156,1763514637744,-500.0,0.00039499,7]
[394383158,1763514637753,-500.0,0.00039499,7]
[394383160,1763514637762,-500.0,0.00039499,7]
[394383162,1763514637771,-500.0,0.00039499,7]
[394383164,1763514637780,-500.0,0.00039499,2]
[394383166,1763514637790,-500.0,0.00039499,2]
[394383168,1763514637799,-500.0,0.00039499,2]
[394383170,1763514637808,-500.0,0.00039499,2]
[394383172,1763514637818,-500.0,0.00039499,2]
[394383174,1763514637827,-1082205.63922532,0.000395,2]
[394383177,1763514637841,-12848.6690919,0.000395,2]
[394383363,1763514639694,-99443.7480991,0.000395,2]
[394383364,1763514639705,-5646.79777795,0.000395,2]
[394383736,1763514645547,-564.44194,0.000395,2]
[394383737,1763514645777,-7532.7853784,0.000395,2]
[394383738,1763514645840,-2934.27013936,0.000395,2]
[394383739,1763514645852,-415.25125311,0.000395,2]
[394383740,1763514645903,-43244.5272516,0.000395,2]
[394383741,1763514645914,-15442.40760153,0.0003952,2]
[394383742,1763514645923,-12102.6476268,0.00039543,2]
[394383743,1763514645932,-470.86,0.00039654,2]
[394383744,1763514645941,-731.04923218,0.00039678,2]
[394383745,1763514645950,-1000.0,0.00039694,7]
[394383746,1763514645960,-1000.0,0.00039773,7]
[394383747,1763514645969,-15442.40760153,0.00039793,2]
[394383748,1763514645978,-12102.6476268,0.00039813,2]
[394383749,1763514645987,-150.42,0.00039856,2]
[394383750,1763514645997,-1000.0,0.00039866,7]
[394383751,1763514646010,-1000.0,0.00039921,5]
[394383752,1763514646020,-1000.0,0.00039951,7]
[394383753,1763514646030,-171.0,0.0004,30]
[394383754,1763514646040,-1000.0,0.00040053,7]
[394383755,1763514646049,-15442.40760153,0.00040065,15]
[394383756,1763514646058,-1000.0,0.00040073,2]
[394383757,1763514646067,-150.0,0.0004008,2]
[394383758,1763514646076,-150.0,0.0004008,2]
[394383759,1763514646085,-150.0,0.0004008,2]
[394383760,1763514646095,-575.0,0.0004008,2]
[394383761,1763514646104,-3432.0,0.0004008,2]
[394383762,1763514646113,-1604.0,0.0004008,2]
[394383763,1763514646122,-6490.0,0.0004008,2]
[394383764,1763514646131,-561.0,0.0004008,2]
[394383765,1763514646140,-12102.6476268,0.00040083,15]
[394383766,1763514646149,-731.04923218,0.00040083,2]
[394383767,1763514646159,-160.38208393,0.00040137,30]
[394383768,1763514646168,-1000.0,0.00040167,7]
[394383769,1763514646177,-192.47,0.00040172,14]
[394383770,1763514646187,-500.0,0.00040202,2]
[394383771,1763514646196,-33332.5957,0.00040202,2]
[394383772,1763514646204,-1000.0,0.00040202,2]
[394383773,1763514646214,-150.0,0.00040273,5]
[394383774,1763514646223,-500.0,0.00040273,30]
[394383775,1763514646232,-325.6066197,0.00040286,7]
[394383776,1763514646244,-674.3933803,0.00040286,7]
[394383777,1763514646252,-500.0,0.00040312,120]
[394383778,1763514646261,-192.47,0.00040317,14]
[394383779,1763514646271,-9386.29513549,0.00040338,15]
[394383785,1763514710699,174.10384257,0.00041802,30]
[394383825,1763514787985,500.0,0.00041802,30]
[394383826,1763514788618,500.0,0.00041802,30]
[394383827,1763514789231,500.0,0.00041802,30]
[394383828,1763514789850,500.0,0.00041802,30]
[394383829,1763514790501,500.0,0.00041802,30]
[394383830,1763514791108,500.0,0.00041802,30]
[394383831,1763514791824,500.0,0.00041802,30]
[394383832,1763514792408,500.0,0.00041802,30]
[394383833,1763514793062,500.0,0.00041802,30]
[394383834,1763514793662,500.0,0.00041802,30]